Cogmind - Beta 16 @@@ ROGUE MODE // 2025.10.22 @ 13:18:10 Player: Rockstar Result: Destroyed by 8B-ZQZ(R) with Subdweller Beam Cannon Performance ------------- Evolutions (0) 0 Regions Visited (3) 600 Robots Destroyed (10) 50 Value Destroyed (277) 277 Prototype IDs (0) 0 Alien Tech Used (0) 0 Bonus (-1) -1 TOTAL SCORE: 926 Bonus ------- Friendly Fire -1 Cogmind --------- Core Integrity 0/250 Matter 140/300 Energy 250/250 System Corruption 0% Temperature Cool (9) Movement Rolling (100) Location -10/Subcaves Parts ------- > --- POWER (1) -------- Ion Engine > --- PROPULSION (2) --- Compact Wheel Compact Wheel > --- UTILITY (2) ------ Small Storage Unit > --- WEAPON (2) ------- Heavy Battle Rifle > --- INVENTORY (8) ---- Ion Engine Subdweller Power Source Aluminum Leg Aluminum Leg Subdweller Monowheel Mining Laser Peak State ------------ > --- POWER ------------ Ion Engine > --- PROPULSION ------- Compact Wheel Compact Wheel > --- UTILITY ---------- Small Storage Unit > --- WEAPON ----------- Heavy Battle Rifle Rocket Launcher > --- INVENTORY -------- Ion Engine Subdweller Power Source Aluminum Leg Aluminum Leg Subdweller Monowheel Mining Laser [Rating: 10] Favorites ----------- Power Ion Engine Engine Ion Engine Propulsion Compact Wheel Wheel Compact Wheel Utility Small Storage Unit Device Sensor Array Storage Small Storage Unit Weapon Medium Laser Energy Gun Medium Laser Ballistic Gun Heavy Battle Rifle Launcher Rocket Launcher Special Weapon Mining Laser Build | -11 -10 -10 -10 ------- Run | Yrd Mat Min Sub Slots Evolved . | . . . . Power . | . . . . Propulsion . | . . . . Utility . | . . . . Weapon . | . . . . Parts Attached 16 | 6 2 3 5 Power 2 | 1 . 1 . Engine 2 | 1 . 1 . Core . | . . . . Reactor . | . . . . Propulsion 3 | 2 . . 1 Treads . | . . . . Leg . | . . . . Wheel 3 | 2 . . 1 Hover . | . . . . Flight . | . . . . Utility 4 | 1 2 1 . Device 2 | . 1 1 . Storage 2 | 1 1 . . Processor . | . . . . Hackware . | . . . . Protection . | . . . . Artifact . | . . . . Weapon 7 | 2 . 1 4 Energy Gun 3 | 2 . 1 . Energy Cannon . | . . . . Ballistic Gun 1 | . . . 1 Ballistic Cannon . | . . . . Launcher 2 | . . . 2 Special Weapon 1 | . . . 1 Impact Weapon . | . . . . Slashing Weapon . | . . . . Piercing Weapon . | . . . . Special Melee Weapon . | . . . . Unidentified Prototypes . | . . . . Parts Lost 7 | . . 1 6 Power . | . . . . Propulsion 1 | . . . 1 Utility 1 | . . . 1 Weapon 5 | . . 1 4 Highest Loss Streak 3 | . . 1 3 To Critical Strikes . | . . . . Average Backups 6 | 1 5 7 7 Power 1 | . 1 2 2 Propulsion 2 | . 2 3 2 Utility . | . . . . Weapon 1 | . 1 2 2 Tool/Special . | . . . . Unused Backups 6 | . . 1 5 Power 3 | . . 1 2 Propulsion 3 | . . . 3 Utility . | . . . . Weapon . | . . . . Tool/Special . | . . . . Average Slot Usage (%) 91 | . 98 98 82 Engine 14 | . 14 14 14 Wheel 25 | . 28 28 21 Device 11 | . 12 14 10 Storage 14 | . 14 14 14 Energy Gun 21 | . 28 26 14 Launcher 2 | . . . 4 Peak Build Rating 10 | 6 7 7 10 Average Rating 6 | 4 6 6 6 On Entrance 5 | . 6 7 7 Avg Prop Armor Cover (%) . | . . . . Naked Turns . | . . . . Heaviest Build 90 | 14 90 14 17 Greatest Support 32 | 26 26 26 32 Greatest Overweight (x) 3 | . 3 . 1 Average Overweight (x) . | . . . . Largest Inventory Capacity 25 | 8 25 8 8 Average Capacity 8 | 6 8 8 8 Most Carried 8 | 4 8 8 8 Average Carried 6 | 2 5 7 7 Final Capacity 8 | 8 8 8 8 Final Carried 8 | 4 8 8 6 Class Distribution -------------------- 100% | Mutant Dominant Class ---------------- Mutant | -10/Materials Mutant | -10/Mines Mutant | -10/Subcaves Resources | -11 -10 -10 -10 ----------- Run | Yrd Mat Min Sub Matter Collected 365 | 260 . 55 50 Remotely . | . . . . Salvage Created 298 | 91 . 82 125 Parts 18 | 1 . 3 14 Haulers Intercepted . | . . . . Recyclers Shooed . | . . . . Parts Field Recycled . | . . . . Retrieved Matter . | . . . . Parts Self-Destructed 13 | . . . 13 Prevented . | . . . . Parts Restored . | . . . . Kills | -11 -10 -10 -10 ------- Run | Yrd Mat Min Sub Combat Hostiles Destroyed 9 | . . 2 7 Guns 6 | . . 2 4 AOE 3 | . . . 3 Classes Destroyed 4 | 1 . 1 2 Recycler 1 | 1 . . . Swarmer 3 | . . . 3 Grunt 2 | . . 2 . Subdweller 4 | . . . 4 Best Kill Streak 3 | 1 . 2 3 Combat Bots Only 3 | . . 2 3 Max Kills in Single Turn 1 | 1 . 1 1 Gunslinging . | . . . . Exploded 1 | . . . 1 Melee . | . . . . Uniques/NPCs Destroyed . | . . . . Combat | -11 -10 -10 -10 -------- Run | Yrd Mat Min Sub Hostile Shots Fired 75 | . . 17 58 Missed 14 | . . 1 13 Hits 61 | . . 16 45 Projectile 61 | . . 16 45 Damage Taken 952 | . . 213 739 Core 255 | . . 55 200 Absorbed by Shields . | . . . . Core Remaining (%) 100 | 100 . . . Volleys Fired 37 | 2 . 6 29 Largest 2 | 2 . 2 2 Hottest 100 | 90 . 90 100 Shots Fired 58 | 4 . 12 42 Gun 48 | 4 . 12 32 Cannon . | . . . . Launcher 9 | . . . 9 Special 1 | . . . 1 Kinetic 11 | . . . 11 Thermal 33 | 2 . 9 22 Explosive 9 | . . . 9 Electromagnetic 5 | 2 . 3 . Robot Hit Streak 10 | 1 . 7 10 Robot Miss Streak 4 | 1 . 1 4 Penetration Max . | . . . . Secondary Targets 2 | . . . 2 Max Gunslinging Chain 1 | . . . 1 Shots Hit Robots 39 | 2 . 10 27 Core Hits 17 | 1 . 5 11 Critical Kills . | . . . . Critical Parts Destroyed . | . . . . Critical Strikes . | . . . . Melee Attacks . | . . . . Impact . | . . . . Slashing . | . . . . Piercing . | . . . . Sneak Attacks . | . . . . Combat Hostiles . | . . . . Follow-up Attacks . | . . . . Damage Inflicted 1111 | 49 . 125 937 Guns 502 | 28 . 125 349 Cannons . | . . . . Explosions 609 | 21 . . 588 Melee . | . . . . Ramming . | . . . . Kinetic 217 | . . . 217 Thermal 265 | 21 . 112 132 Explosive 588 | . . . 588 Electromagnetic 41 | 28 . 13 . Impact . | . . . . Slashing . | . . . . Piercing . | . . . . Highest Corruption . | . . . . Average Corruption . | . . . . Corruption Purged . | . . . . Corruption Blocked . | . . . . Overload Shots . | . . . . Overflow Damage . | . . . . Projectiles . | . . . . Explosions . | . . . . Melee . | . . . . Knockbacks . | . . . . Impact . | . . . . Kinetic . | . . . . Secondary . | . . . . Self-Inflicted Damage . | . . . . Shots . | . . . . Rammed . | . . . . Targets Rammed . | . . . . Kicked . | . . . . Crushed . | . . . . Highest Temperature 237 | 60 . 237 . Average Temperature 112 | 33 . 132 . Received Heat Transfer 240 | . . 117 123 Siege Activations . | . . . . Martial Activations . | . . . . Shielding Activations . | . . . . Robots Disrupted . | . . . . Combat Hostiles . | . . . . Robots Corrupted . | . . . . Combat Hostiles . | . . . . Parts Fried . | . . . . Impact Corruptions . | . . . . Robots Melted . | . . . . Combat Hostiles . | . . . . Parts Melted 2 | . . 1 1 Heat Transferred 706 | 50 . 297 359 Parts Sabotaged . | . . . . Parts Stolen . | . . . . Parts Stripped . | . . . . Power Chain Reactions 1 | 1 . . . Alert | -11 -10 -10 -10 ------- Run | Yrd Mat Min Sub Maximum Alert Level . | . . . . Low Security (%) 100 | 100 100 100 . Level 1 . | . . . . Level 2 . | . . . . Level 3 . | . . . . Level 4 . | . . . . Level 5 . | . . . . High Security . | . . . . Max Security . | . . . . Peak Influence 50 | 5 8 50 . Initial 3 | . 3 . . Average 6 | . . 16 . Influence Increases 133 | 5 8 50 70 Destroy 0b10 Robot/C 100 | . . 40 60 Destroy 0b10 Robot/NC 5 | 5 . . . Destroy Leader 20 | . . 10 10 Successful Hack 8 | . 8 . . Influence Decreases 133 | . 13 50 70 Entered New Map 2 | . 2 . . Time Decay 111 | . 11 50 50 Lost Part 20 | . . . 20 Squads Dispatched 1 | . 1 . . Investigation . | . . . . Extermination . | . . . . Reinforcement 1 | . 1 . . Assault . | . . . . Garrison . | . . . . Intercept . | . . . . Searches Triggered . | . . . . Construction Impeded . | . . . . Haulers Reinforced . | . . . . Active Scanning Responses . | . . . . Cargo Convoy Interrupts . | . . . . Stealth | -11 -10 -10 -10 --------- Run | Yrd Mat Min Sub Distress Signals . | . . . . Communications Jammed . | . . . . Distress Signals . | . . . . Times Spotted 16 | . 2 2 12 Peak Tracking Total 5 | . 1 2 5 Tactical Retreats . | . . . . Traps | -11 -10 -10 -10 ------- Run | Yrd Mat Min Sub Traps Triggered . | . . . . Indirectly . | . . . . Trap Hack Attempts . | . . . . Triggered . | . . . . Disarmed . | . . . . Reprogrammed . | . . . . Reused . | . . . . Traps Extracted . | . . . . Installed . | . . . . Triggered . | . . . . Machines | -11 -10 -10 -10 ---------- Run | Yrd Mat Min Sub Machines Disabled . | . . . . Max in Single Turn . | . . . . Machines Repaired . | . . . . Machines Dismantled . | . . . . Machines Sabotaged . | . . . . Overloaded Fab Kills . | . . . . Hacking | -11 -10 -10 -10 --------- Run | Yrd Mat Min Sub Machines Accessed 2 | . 2 . . Terminals 2 | . 2 . . Fabricators . | . . . . Repair Stations . | . . . . Recycling Units . | . . . . Scanalyzers . | . . . . Garrison Access . | . . . . Total Hacks 4 | . 4 . . Successful 1 | . 1 . . Failed 3 | . 3 . . Catastrophic 1 | . 1 . . Database Lockouts . | . . . . Manual 4 | . 4 . . Terminals 4 | . 4 . . Fabricators . | . . . . Repair Stations . | . . . . Recycling Units . | . . . . Scanalyzers . | . . . . Garrison Access . | . . . . Terminal Hacks 1 | . 1 . . Branch Access Points 1 | . 1 . . Fabricator Hacks . | . . . . Repair Station Hacks . | . . . . Recycling Unit Hacks . | . . . . Scanalyzer . | . . . . Garrison Access Hacks . | . . . . Unauthorized Hacks . | . . . . Terminals . | . . . . Fabricators . | . . . . Repair Stations . | . . . . Recycling Units . | . . . . Scanalyzers . | . . . . Garrison Access . | . . . . Data Cores Recovered . | . . . . Used . | . . . . Hacking Detections 1 | . 1 . . Full Trace Events . | . . . . Feedback Events . | . . . . Feedback Blocked . | . . . . Robot Schematics Acquired . | . . . . Robots Built . | . . . . Authchips . | . . . . Time . | . . . . Total Robot Build Rating . | . . . . Part Schematics Acquired . | . . . . Parts Built . | . . . . Authchips . | . . . . Time . | . . . . Total Part Build Rating . | . . . . Part Studies Acquired . | . . . . Parts Repaired . | . . . . Time . | . . . . Parts Recycled . | . . . . Recycled Matter . | . . . . Retrieved Matter . | . . . . Retrieved Components . | . . . . Parts Scanalyzed . | . . . . Part Schematics Acquired . | . . . . Parts Damaged . | . . . . Bothacking | -11 -10 -10 -10 ------------ Run | Yrd Mat Min Sub Used RIF Installer . | . . . . Robots Hacked . | . . . . Non-combat . | . . . . Combat . | . . . . Robot Hacks Applied . | . . . . Relay Couplers Released . | . . . . Fabnet Peak Effective % . | . . . . Robots Rewired . | . . . . Allies Hacked . | . . . . Hacks Repelled . | . . . . Allies | -11 -10 -10 -10 -------- Run | Yrd Mat Min Sub Total Allies . | . . . . Largest Group . | . . . . Highest-Rated Group . | . . . . Highest-Rated Ally . | . . . . Total Orders . | . . . . Ally Attacks . | . . . . Total Damage . | . . . . Kills . | . . . . Allies Corrupted . | . . . . Allies Melted . | . . . . Intel | -11 -10 -10 -10 ------- Run | Yrd Mat Min Sub Active Infowar (turns) 513 | . 177 127 209 Sensors 513 | . 177 127 209 Robot Analysis Total . | . . . . Derelict Logs Recovered 2 | . . 1 1 Drone Launches . | . . . . Drone Recoveries . | . . . . Exploration | -11 -10 -10 -10 ------------- Run | Yrd Mat Min Sub Turns Passed 644 | 56 184 127 277 Spaces Moved 533 | 42 192 110 189 Core 1 | 1 . . . Treads . | . . . . Legs . | . . . . Wheels 532 | 41 192 110 189 Hover . | . . . . Flight . | . . . . Fastest Speed 50 | 50 90 90 90 Average Speed 92 | 88 91 90 96 Slowest Speed 135 | 90 135 90 115 Overloaded Moves . | . . . . Propulsion Burnouts . | . . . . Robots Hopped . | . . . . Potential Cave-ins . | . . . . Cave-ins Triggered . | . . . . Exploration Rate (%) 25 | 2 33 40 26 Regions Visited 3 Branch Regions 2 Pre-discovered Areas 2 | . . 1 1 Known Exits Taken 1 | . 1 . . Unknown Exits Taken 2 | 1 . 1 . Scrap Searched 2 | . . 2 . Spaces Dug . | . . . . Terrain Destroyed 59 | . . . 59 Melee . | . . . . Projectile . | . . . . AOE 59 | . . . 59 Terrain Rammed . | . . . . Walls Destroyed . | . . . . Machines Disabled . | . . . . Actions | -11 -10 -10 -10 --------- Run | Yrd Mat Min Sub Total 616 | 53 199 126 238 Wait 10 | . . 5 5 Move 530 | 41 191 109 189 Hop . | . . . . Pick Up 12 | 4 4 1 3 Fast Attach 7 | 6 1 . . Attach 5 | . . 1 4 Detach . | . . . . Swap 11 | . 2 2 7 Drop 4 | . 1 2 1 Fire 37 | 2 . 6 29 Melee . | . . . . Ram . | . . . . Kick . | . . . . Crush . | . . . . Escape Stasis . | . . . . Rewire . | . . . . Trap . | . . . . Miscellaneous . | . . . . Route ------- -11/Scrapyard -10/Materials -10/Mines -10/Subcaves History --------- Turn | Location | Event 23 | -11/Scrapyard | Discovered new exit (range 15) 57 | -11/Scrapyard | Entered Materials 208 | -10/Materials | Identified exit to Mines 241 | -10/Materials | Entered Mines 318 | -10/Mines | Learned location of Recycling (-7) 322 | -10/Mines | Build established: Mutant 353 | -10/Mines | Received a Rocket Launcher from a helpful Derelict 364 | -10/Mines | Discovered new exit (range 5) 368 | -10/Mines | Entered Subcaves 369 | -10/Subcaves | Approached by a straggling Scientist 458 | -10/Subcaves | Core integrity fell below 50% 578 | -10/Subcaves | Learned location of Zion (-7) 594 | -10/Subcaves | Shifting Twisted Machinery released Sub. Monowheel 601 | -10/Subcaves | Shifting Twisted Machinery released Hvy. Battle Rifle 608 | -10/Subcaves | Lost 3 parts (1u2w) 624 | -10/Subcaves | Core integrity fell below 20% 645 | -10/Subcaves | Destroyed by 8B-ZQZ(R) with Subdweller Beam Cannon Last Messages --------------- 00565_ BZ-0KF(R) destroyed. [Achievement: Do Not Disturb] 00566_ KL-NXA(R): "ARGHSUB!" 00572_ Med. Laser destroyed. 00572_ S-10 Pest destroyed. 00574_ Lgt. Assault Rifle fries itself beyond repair. 00575_ Flight Unit fries itself beyond repair. 00577_ Acquired 15 matter. 00577_ Sensor Array destroyed. 00578_ Acquired derelict log, extracted data. World map updated: -7/Zion. 00579_ Flight Unit fries itself beyond repair. 00584_ Lgt. Ion Engine fries itself beyond repair. 00587_ Subatomizers dissect the Disposable Heat Sink. Sub. Monowheel falls loose from the Twisted Machinery. 00598_ Acquired Sub. Monowheel. Hvy. Battle Rifle falls loose from the Twisted Machinery. 00615_ Acquired Hvy. Battle Rifle. 00618_ Rocket Launcher destroyed. 00619_ Acquired 9 matter. Map ----- +----------------------------------------------------+ | #### ?????????????? | | "" %# # ### ?????????????? | | %=##### #???? ????????????????? | | ## =### ###?? ?????????????????? | | ### # ##? #??????????????????? | | #?## # ## #???????????????????? | | #??# # # ##??????????????????? | | #?# ## ##?????????????????? | | # #?## ! ## ###???????????????? | | # #?# %! # ### ##???#??????????? | | #"##?#" % """"##?## ## #??????????? | | """??## ! ""######## ##?????????? | | ???# # #?# """ " #?????????? | | #??? #?#""" "" "" #????????? | | ###???? " #??""##"##" ##### ??????? | | #?????? ""?####??????##?## ##????## ???????? | | ??????""????????????????# ##??????# ????????? | | ??????????????????????### ##????????????????? | | ??????????????????????## "" #????????????????? | | ??????????????????????#" " #####????????????????? | | ??????????????????????# "##????????????????????? | | ??????????????????????## R"#?????????????????????? | | ???????????????????????# #?????????????????????? | | ?????????????????#" #### ##????????????????????? | | ?????????????????#" % " #????????????????????? | | ???????????????# "" @ #????????????????????? | | ???????????????# " % #?????????????????? | | ??????????????# "% #?????????????????? | | ??????????????# #?????????????????? | | ??????????????## ;#% #?????????????????? | | ???????????????# % ## ##?????????????????? | | ???????????????# ? ##??????????????????? | | ??????????????# ?? ;???????????????????? | | ??????????????# ?? ### ??????????????????? | | ??????????????# ???#;??? ??????????????????? | | ??????????????## ????##??? ?????????????????? | | ???????????????#?????????? ?????????????????? | | ?????????????????????????? #????????????????? | | ?????????????????????????? #????????????????? | | ?????????????????????????? ???????????????????? | | ?????????????????????????? ?????????????????????? | | ?????????????????????????????????????????????????? | | ?????????????????????????????????????????????????? | | ?????????????????????????????????????????????????? | | ?????????????????????????????????????????????????? | | ?????????????????????????????????????????????????? | | ?????????????????????????????????????????????????? | | ?????????????????????????????????????????????????? | | ?????????????????????????????????????????????????? | | ?????????????????????????????????????????????????? | +----------------------------------------------------+ Best States ------------- Heat Dissipation 25 Energy Generation 10 Energy Capacity 250 Matter Stores 300 Matter Capacity 300 Sight Range 16 Robot Scan Range 14 Terrain Scan Density 10 Evasion (%) 42 Item Schematics ----------------- None Robot Schematics ------------------ None Fabricated ------------ Nothing Repaired ---------- Nothing Studied --------- None Alien Tech Used ----------------- None Achievements -------------- Do Not Disturb Challenges ------------ None Game ------ Seed StormCloakingThermoblaster Manual? 0 Play Time 00:10:51 Cumulative 158.3 hours Start 2025.10.22 @ 13:08:01 End 2025.10.22 @ 13:18:10 Sessions 1 Manual Loads 0 Difficulty Rogue Special Mode None Game No. 149 Rogue 146 Adventurer 1 Explorer 2 Win Type - Total 1 Types 1/0/0/0/0/0/0/0/0/0 Lore% 53 Gallery% 59 Achievement% 28 Wizard Run 0 Options --------- Layout 0 ASCII 0 Keyboard 0 Movement Mouse Keybinds 0 Fullscreen 2 Font 24/Smallcaps Map View 76x50 Zoom Use 0% Tactical HUD 1 Map Filters NONE Filters NONE Steam 1 RUN: a951e5eb-e0f9-48e0-8e98-6826246159ff